Cogmind - Beta 16.1 @@@ ROGUE MODE // 2026.02.16 @ 08:51:35 Player: MrFartsburg Result: Destroyed by as-05901 with Assembled Heavy Rifle Performance ------------- Evolutions (0) 0 Regions Visited (2) 400 Robots Destroyed (8) 40 Value Destroyed (226) 226 Prototype IDs (0) 0 Alien Tech Used (0) 0 Bonus (-19) -19 TOTAL SCORE: 647 Bonus ------- Friendly Fire -19 Cogmind --------- Core Integrity 0/250 Matter 67/300 Energy 40/100 System Corruption 0% Temperature Cool (0) Movement Walking (120) Location -10/Mines Parts ------- > --- POWER (1) -------- (None) > --- PROPULSION (2) --- Aluminum Leg Aluminum Leg > --- UTILITY (2) ------ Small Storage Unit > --- WEAPON (2) ------- Mining Laser > --- INVENTORY (8) ---- Light Ion Engine Peak State ------------ > --- POWER ------------ Ion Engine > --- PROPULSION ------- Light Treads Light Treads > --- UTILITY ---------- Improved Heat Sink Small Storage Unit > --- WEAPON ----------- EM Pulse Gun Assault Rifle > --- INVENTORY -------- Light Ion Engine Aluminum Leg Aluminum Leg Beam Cannon Light Assault Rifle [Rating: 9] Favorites ----------- Power Ion Engine Engine Ion Engine Propulsion Light Treads Treads Light Treads Leg Aluminum Leg Wheel Compact Wheel Utility Small Storage Unit Device Improved Heat Sink Storage Small Storage Unit Protection Light Armor Plating Weapon Assault Rifle Energy Gun EM Pulse Gun Energy Cannon Beam Cannon Ballistic Gun Assault Rifle Special Weapon Mining Laser Build | -11 -10 -10 ------- Run | Yrd Mat Min Slots Evolved . | . . . Power . | . . . Propulsion . | . . . Utility . | . . . Weapon . | . . . Parts Attached 17 | 6 7 4 Power 2 | 1 1 . Engine 2 | 1 1 . Core . | . . . Reactor . | . . . Propulsion 6 | 2 2 2 Treads 2 | . 2 . Leg 2 | . . 2 Wheel 2 | 2 . . Hover . | . . . Flight . | . . . Utility 3 | 1 2 . Device 1 | . 1 . Storage 1 | 1 . . Processor . | . . . Hackware . | . . . Protection 1 | . 1 . Artifact . | . . . Weapon 6 | 2 2 2 Energy Gun 1 | . 1 . Energy Cannon 2 | . 1 1 Ballistic Gun 2 | 2 . . Ballistic Cannon . | . . . Launcher . | . . . Special Weapon 1 | . . 1 Impact Weapon . | . . . Slashing Weapon . | . . . Piercing Weapon . | . . . Special Melee Weapon . | . . . Unidentified Prototypes . | . . . Parts Lost 8 | . 2 6 Power 1 | . . 1 Propulsion 2 | . 1 1 Utility 2 | . 1 1 Weapon 3 | . . 3 Highest Loss Streak 6 | . 2 6 To Critical Strikes 1 | . . 1 Average Backups 5 | 3 6 5 Power . | . 1 1 Propulsion 2 | 2 3 2 Utility . | . . . Weapon 2 | . 2 2 Tool/Special . | . . . Unused Backups 2 | . 1 1 Power 1 | . . 1 Propulsion . | . . . Utility . | . . . Weapon 1 | . 1 . Tool/Special . | . . . Average Slot Usage (%) 96 | . 92 99 Engine 14 | . 14 14 Treads 21 | . 12 28 Wheel 6 | . 14 . Device 10 | . 5 14 Storage 14 | . 14 14 Protection 1 | . 2 . Energy Gun 3 | . 7 1 Ballistic Gun 16 | . 19 14 Special Weapon 7 | . . 12 Peak Build Rating 9 | 6 9 9 Average Rating 7 | 4 7 8 On Entrance 5 | . 6 9 Avg Prop Armor Cover (%) . | . . . Naked Turns . | . . . Heaviest Build 16 | 13 16 15 Greatest Support 40 | 26 40 40 Greatest Overweight (x) . | . . . Average Overweight (x) . | . . . Largest Inventory Capacity 8 | 8 8 8 Average Capacity 7 | 7 8 8 Most Carried 8 | 6 8 6 Average Carried 5 | 3 6 5 Final Capacity 8 | 8 8 8 Final Carried 6 | 6 5 1 Class Distribution -------------------- 100% | Mutant Dominant Class ---------------- Mutant | -10/Materials Mutant | -10/Mines Resources | -11 -10 -10 ----------- Run | Yrd Mat Min Matter Collected 288 | 245 43 . Remotely . | . . . Salvage Created 314 | . 188 126 Parts 17 | . 11 6 Haulers Intercepted . | . . . Recyclers Shooed . | . . . Parts Field Recycled . | . . . Retrieved Matter . | . . . Parts Self-Destructed . | . . . Prevented . | . . . Parts Restored . | . . . Kills | -11 -10 -10 ------- Run | Yrd Mat Min Combat Hostiles Destroyed 10 | . 6 4 Guns 9 | . 6 3 Cannons 1 | . . 1 Classes Destroyed 3 | . 2 1 Swarmer 3 | . 3 . Grunt 5 | . 3 2 Assembled 2 | . . 2 Best Kill Streak 5 | . 5 2 Combat Bots Only 5 | . 5 2 Max Kills in Single Turn 2 | . 1 2 Gunslinging 1 | . . 1 Exploded . | . . . Melee . | . . . Uniques/NPCs Destroyed . | . . . Combat | -11 -10 -10 -------- Run | Yrd Mat Min Hostile Shots Fired 115 | . 72 43 Missed 24 | . 13 11 Hits 91 | . 59 32 Melee 10 | . . 10 Projectile 81 | . 59 22 Critical Strikes 4 | . 1 3 Damage Taken 1184 | . 532 652 Core 255 | . 115 140 Absorbed by Shields . | . . . Core Remaining (%) 100 | 100 . . Volleys Fired 75 | . 21 54 Largest 2 | . 2 2 Hottest 120 | . 80 120 Shots Fired 127 | . 42 85 Gun 75 | . 35 40 Cannon 7 | . 7 . Launcher . | . . . Special 45 | . . 45 Kinetic 57 | . 22 35 Thermal 52 | . 7 45 Explosive . | . . . Electromagnetic 18 | . 13 5 Robot Hit Streak 10 | . 10 3 Robot Miss Streak 4 | . 2 4 Penetration Max . | . . . Secondary Targets 2 | . . 2 Max Gunslinging Chain 1 | . . 1 Shots Hit Robots 38 | . 32 6 Core Hits 19 | . 13 6 Critical Kills . | . . . Critical Parts Destroyed . | . . . Critical Strikes . | . . . Melee Attacks . | . . . Impact . | . . . Slashing . | . . . Piercing . | . . . Sneak Attacks . | . . . Combat Hostiles . | . . . Follow-up Attacks . | . . . Damage Inflicted 599 | . 469 130 Guns 441 | . 335 106 Cannons 122 | . 122 . Explosions . | . . . Melee . | . . . Ramming 12 | . 12 . Kinetic 265 | . 211 54 Thermal 146 | . 122 24 Explosive . | . . . Electromagnetic 176 | . 124 52 Impact . | . . . Slashing . | . . . Piercing . | . . . Highest Corruption . | . . . Average Corruption . | . . . Corruption Purged . | . . . Corruption Blocked . | . . . Overload Shots . | . . . Overflow Damage . | . . . Projectiles . | . . . Explosions . | . . . Melee . | . . . Knockbacks . | . . . Impact . | . . . Kinetic . | . . . Secondary . | . . . Self-Inflicted Damage 5 | . 5 . Shots . | . . . Rammed 5 | . 5 . Targets Rammed 5 | . 5 . Kicked . | . . . Crushed . | . . . Highest Temperature 248 | . 248 . Average Temperature 138 | . 138 . Received Heat Transfer 119 | . 93 26 Effects 2 | . 2 . Interference 2 | . 2 . Siege Activations . | . . . Martial Activations . | . . . Shielding Activations . | . . . Robots Disrupted . | . . . Combat Hostiles . | . . . Robots Corrupted . | . . . Combat Hostiles . | . . . Parts Fried . | . . . Impact Corruptions . | . . . Robots Melted . | . . . Combat Hostiles . | . . . Parts Melted 1 | . 1 . Heat Transferred 309 | . 259 50 Parts Sabotaged . | . . . Parts Stolen . | . . . Parts Stripped . | . . . Power Chain Reactions . | . . . Alert | -11 -10 -10 ------- Run | Yrd Mat Min Maximum Alert Level . | . . . Low Security (%) 100 | 100 100 100 Level 1 . | . . . Level 2 . | . . . Level 3 . | . . . Level 4 . | . . . Level 5 . | . . . High Security . | . . . Max Security . | . . . Peak Influence 135 | . 135 54 Initial 39 | . . 39 Average 30 | . 59 14 Influence Increases 290 | . 202 88 Destroy 0b10 Robot/C 160 | . 120 40 Destroy Leader 40 | . 30 10 Allied During Kill 3 | . . 3 Successful Hack 7 | . 7 . Destroy Structure 35 | . . 35 Lose Combat Pursuer 45 | . 45 . Influence Decreases 290 | . 100 190 Entered New Map 63 | . . 63 Time Decay 207 | . 80 127 Lost Part 20 | . 20 . Squads Dispatched 1 | . 1 . Investigation . | . . . Extermination . | . . . Reinforcement 1 | . 1 . Assault . | . . . Garrison . | . . . Intercept . | . . . Searches Triggered . | . . . Construction Impeded . | . . . Haulers Reinforced . | . . . Active Scanning Responses . | . . . Cargo Convoy Interrupts . | . . . Stealth | -11 -10 -10 --------- Run | Yrd Mat Min Distress Signals . | . . . Communications Jammed . | . . . Distress Signals . | . . . Times Spotted 26 | . 10 16 Peak Tracking Total 18 | . 6 18 Tactical Retreats 3 | . 3 . Traps | -11 -10 -10 ------- Run | Yrd Mat Min Traps Triggered . | . . . Indirectly . | . . . Trap Hack Attempts . | . . . Triggered . | . . . Disarmed . | . . . Reprogrammed . | . . . Reused . | . . . Traps Extracted . | . . . Installed . | . . . Triggered . | . . . Machines | -11 -10 -10 ---------- Run | Yrd Mat Min Machines Disabled . | . . . Max in Single Turn . | . . . Machines Repaired . | . . . Machines Dismantled . | . . . Machines Sabotaged . | . . . Overloaded Fab Kills . | . . . Hacking | -11 -10 -10 --------- Run | Yrd Mat Min Machines Accessed 1 | . 1 . Terminals 1 | . 1 . Fabricators . | . . . Repair Stations . | . . . Recycling Units . | . . . Scanalyzers . | . . . Garrison Access . | . . . Total Hacks 2 | . 2 . Successful 1 | . 1 . Failed 1 | . 1 . Catastrophic . | . . . Database Lockouts . | . . . Manual . | . . . Terminals 2 | . 2 . Fabricators . | . . . Repair Stations . | . . . Recycling Units . | . . . Scanalyzers . | . . . Garrison Access . | . . . Terminal Hacks 1 | . 1 . Scanalyzer Index 1 | . 1 . Fabricator Hacks . | . . . Repair Station Hacks . | . . . Recycling Unit Hacks . | . . . Scanalyzer . | . . . Garrison Access Hacks . | . . . Unauthorized Hacks . | . . . Terminals . | . . . Fabricators . | . . . Repair Stations . | . . . Recycling Units . | . . . Scanalyzers . | . . . Garrison Access . | . . . Data Cores Recovered . | . . . Used . | . . . Hacking Detections 1 | . 1 . Full Trace Events . | . . . Feedback Events . | . . . Feedback Blocked . | . . . Robot Schematics Acquired . | . . . Robots Built . | . . . Authchips . | . . . Time . | . . . Total Robot Build Rating . | . . . Part Schematics Acquired . | . . . Parts Built . | . . . Authchips . | . . . Time . | . . . Total Part Build Rating . | . . . Part Studies Acquired . | . . . Parts Repaired . | . . . Time . | . . . Parts Recycled . | . . . Recycled Matter . | . . . Retrieved Matter . | . . . Retrieved Components . | . . . Parts Scanalyzed . | . . . Part Schematics Acquired . | . . . Parts Damaged . | . . . Bothacking | -11 -10 -10 ------------ Run | Yrd Mat Min Used RIF Installer . | . . . Robots Hacked . | . . . Non-combat . | . . . Combat . | . . . Robot Hacks Applied . | . . . Relay Couplers Released . | . . . Fabnet Peak Effective % . | . . . Robots Rewired . | . . . Allies Hacked . | . . . Hacks Repelled . | . . . Allies | -11 -10 -10 -------- Run | Yrd Mat Min Total Allies 1 | . . 1 Largest Group 1 | . . 1 Highest-Rated Group 31 | . . 31 Highest-Rated Ally 31 | . . 31 Total Orders . | . . . Ally Attacks 2 | . . 2 Total Damage 22 | . . 22 Kills . | . . . Allies Corrupted . | . . . Allies Melted . | . . . Intel | -11 -10 -10 ------- Run | Yrd Mat Min Active Infowar (turns) . | . . . Robot Analysis Total . | . . . Derelict Logs Recovered . | . . . Drone Launches . | . . . Drone Recoveries . | . . . Exploration | -11 -10 -10 ------------- Run | Yrd Mat Min Turns Passed 778 | 56 298 424 Spaces Moved 343 | 42 185 116 Core 2 | 2 . . Treads 185 | . 69 116 Legs . | . . . Wheels 156 | 40 116 . Hover . | . . . Flight . | . . . Fastest Speed 50 | 50 90 160 Average Speed 127 | 91 116 160 Slowest Speed 160 | 100 160 160 Overloaded Moves . | . . . Propulsion Burnouts . | . . . Robots Hopped . | . . . Potential Cave-ins . | . . . Cave-ins Triggered . | . . . Exploration Rate (%) 20 | 4 32 24 Regions Visited 2 Branch Regions 1 Pre-discovered Areas . | . . . Known Exits Taken . | . . . Unknown Exits Taken 2 | 1 1 . Scrap Searched . | . . . Spaces Dug 44 | . . 44 Terrain Destroyed 44 | . . 44 Melee . | . . . Projectile 44 | . . 44 AOE . | . . . Terrain Rammed . | . . . Walls Destroyed . | . . . Machines Disabled . | . . . Actions | -11 -10 -10 --------- Run | Yrd Mat Min Total 468 | 59 228 181 Wait . | . . . Move 341 | 41 184 116 Hop . | . . . Pick Up 19 | 12 6 1 Fast Attach . | . . . Attach 15 | 6 4 5 Detach . | . . . Swap 8 | . 4 4 Drop 5 | . 4 1 Fire 75 | . 21 54 Melee . | . . . Ram 5 | . 5 . Kick . | . . . Crush . | . . . Escape Stasis . | . . . Rewire . | . . . Trap . | . . . Miscellaneous . | . . . Route ------- -11/Scrapyard -10/Materials -10/Mines History --------- Turn | Location | Event 27 | -11/Scrapyard | Discovered new exit (range 15) 57 | -11/Scrapyard | Entered Materials 305 | -10/Materials | Build established: Mutant 339 | -10/Materials | Discovered new exit (range 11) 355 | -10/Materials | Entered Mines 358 | -10/Mines | Received a Mining Laser from a helpful Derelict 753 | -10/Mines | Assembled infested the area 767 | -10/Mines | Core integrity fell below 50% 778 | -10/Mines | Core integrity fell below 20% 779 | -10/Mines | Destroyed by as-05901 with Assembled Heavy Rifle Last Messages --------------- Switching to secondary target: G-34 Mercenary. G-34 Mercenary destroyed. QA-REE(g): "You look like you can take it from here!" QA-REE(g) slips back into the shadows. U-05 Engineer builds a Wall. ALERT: Infestation in the mines, dispatching Demolisher response squad. as-78840 destroyed. Switching to secondary target: as-73351. EM Pulse Gun destroyed. Beam Cannon severed. Assault Rifle destroyed. Lgt. Treads destroyed. Critical hit (Destroy). Lgt. Assault Rifle destroyed. Imp. Heat Sink destroyed. Ion Engine destroyed. Dropped Lgt. Treads. as-99467 destroyed. Map ----- +----------------------------------------------------+ | | | | | | | | | | | | | | | | | | | | | | | | | | | | | | | ?????????????????????????????????????????????????? | | ??????????????????????????????????????????????#### | | ?????????????????????????????????????####???### | | ????????????????????????????????###### ##??# " | | ????????????# ???????????????#### #### " "" | | ???????????? ?????????????# ## ### ##""# "" | | ??????????? aa ????????####### #?## ## "" | | ????????????#aa a ?????## #??## # | | ?????????????# % a#### ####???## # "" | | ?????????????# aaa ####????## # "" | | ?????????????# a@= ##??????## # "" | | ?????????????# a##a## #????????## ## | | ?????????????## ? ???####" #?????????##### "" | | ????????????????? ???????# "" ##?????????????# "" | | ?????????????????????????## #""#??????????????# "" | | ??????????????????????????### ##??????????????# | | ????????????????????????????###???????????????#### | | ???????????????????????????????????????????###???# | | ??????????????????????????????????????????##"##### | | ??????????????????????????????????????????#" | | ??????????????????????????????????# ?????## ##### | | ?????????????????????????????????## ????# #???? | | ?????????????????????????????????# ??# ####? | | ?????????????????????????????? = ## ##"#? | | ?????????????????????????????? =%* ## | | ?????????????????????????????? [!% ## | | ?????????????????????????????? !## ##### #" | | ???????????????????????????????????## ????#" | | ????????????????????????????????????###?????## ## | | ?????????????????????????????????????????????# ## | | ???????????????????????????????????????????? #? | | ??????????????????????????????????????????? #? | | ??????????????????????????????????????????# ? | | ?????????????????????????????????????????# ? | | ?????????????????????????????????????????## ## | +----------------------------------------------------+ Best States ------------- Heat Dissipation 39 Energy Generation 10 Energy Capacity 250 Matter Stores 297 Matter Capacity 300 Sight Range 16 Terrain Scan Density 10 Armor Coverage 150 Evasion (%) 42 Recoil Reduction 2 Item Schematics ----------------- None Robot Schematics ------------------ None Fabricated ------------ Nothing Repaired ---------- Nothing Studied --------- None Alien Tech Used ----------------- None Achievements -------------- None Challenges ------------ None Game ------ Seed ImpulseSurgeShredder Manual? 0 Play Time 00:23:45 Cumulative 15.9 hours Start 2026.02.16 @ 08:25:36 End 2026.02.16 @ 08:51:35 Sessions 1 Manual Loads 0 Difficulty Rogue Special Mode None Game No. 29 Rogue 29 Adventurer 0 Explorer 0 Win Type - Total 0 Types 0/0/0/0/0/0/0/0/0/0 Lore% 9 Gallery% 17 Achievement% 12 Wizard Run 0 Options --------- Layout 1 ASCII 0 Keyboard 0 Movement Numpad Keybinds 0 Fullscreen 1 Font 32/SmallcapsGlow Map View 50x35 Zoom Use 0% Tactical HUD 0 Map Filters NONE Filters NONE Steam 1 RUN: 1c9d9010-3d3a-4a98-bbcc-5335d0e5a446